fUSD/lending_fUSD_20240117
["ID","MTS","AMOUNT","RATE_DAILY","PERIOD"]
[311859650,1705476660378,-164.18,0.00022669,2]
[311859651,1705476660390,-150.0,0.00022677,2]
[311859652,1705476660402,-1342.25235722,0.00022686,2]
[311859653,1705476660412,-150.0,0.00022709,2]
[311859654,1705476660423,-300.0,0.00022716,2]
[311859655,1705476660434,-150.0,0.00022725,2]
[311859656,1705476660444,-513.74791901,0.00022738,2]
[311859657,1705476660454,-500.0,0.00022738,2]
[311859658,1705476660466,-500.0,0.00022738,2]
[311859659,1705476660477,-500.0,0.00022738,2]
[311859660,1705476660486,-500.0,0.00022738,2]
[311859661,1705476660497,-500.0,0.00022738,2]
[311859662,1705476660508,-522.3761109,0.00022738,2]
[311859663,1705476660518,-722.0,0.00022738,2]
[311859664,1705476660529,-500.0,0.00022738,2]
[311859665,1705476660540,-500.0,0.00022738,2]
[311859666,1705476660550,-500.0,0.00022738,2]
[311859667,1705476660561,-500.0,0.00022738,2]
[311859668,1705476660572,-500.0,0.00022738,2]
[311859669,1705476660583,-500.0,0.00022738,2]
[311859670,1705476660593,-500.0,0.00022738,2]
[311859671,1705476660602,-515.10009924,0.00022738,2]
[311859672,1705476660611,-500.0,0.00022738,2]
[311859673,1705476660622,-542.18,0.00022738,2]
[311859674,1705476660632,-833.24,0.00022738,2]
[311859675,1705476660642,-500.0,0.00022738,2]
[311859676,1705476660653,-500.0,0.00022738,2]
[311859677,1705476660663,-500.0,0.00022738,2]
[311859678,1705476660674,-541.00915227,0.00022738,2]
[311859679,1705476660685,-500.0,0.00022738,2]
[311859680,1705476660695,-500.0,0.00022738,2]
[311859681,1705476660705,-588.46,0.00022738,2]
[311859682,1705476660716,-500.0,0.00022738,2]
[311859683,1705476660726,-527.89603711,0.00022738,2]
[311859684,1705476660736,-500.0,0.00022738,2]
[311859685,1705476660746,-500.0,0.00022738,2]
[311859686,1705476660755,-500.0,0.00022738,2]
[311859687,1705476660765,-1088.82,0.00022738,2]
[311859688,1705476660776,-500.0,0.00022738,2]
[311859689,1705476660787,-500.0,0.00022738,2]
[311859690,1705476660798,-751.57,0.00022738,2]
[311859691,1705476660810,-500.0,0.00022738,2]
[311859692,1705476660821,-613.34,0.00022738,2]
[311859693,1705476660832,-1137.35,0.00022738,2]
[311859694,1705476660843,-1343.2,0.00022738,2]
[311859695,1705476660854,-500.0,0.00022738,2]
[311859696,1705476660864,-687.48,0.00022738,2]
[311859697,1705476660875,-500.0,0.00022738,2]
[311859698,1705476660886,-531.12461463,0.00022738,2]
[311859699,1705476660899,-500.0,0.00022738,15]
[311859700,1705476660910,-514.29662657,0.00022738,2]
[311859701,1705476660922,-391.38482186,0.00022738,2]
[311859702,1705476660932,-500.0,0.00022738,2]
[311859703,1705476660943,-500.0,0.00022738,2]
[311859704,1705476660953,-500.0,0.00022738,7]
[311859705,1705476660965,-500.0,0.00022738,2]
[311859706,1705476660975,-844.65,0.00022738,2]
[311859707,1705476660987,-521.78705526,0.00022738,2]
[311859708,1705476660999,-523.66897199,0.00022738,2]
[311859709,1705476661011,-478.87893244,0.00022738,2]
[311859710,1705476661022,-500.0,0.00022738,2]
[311859711,1705476661033,-500.0,0.00022738,2]
[311859712,1705476661044,-500.0,0.00022738,2]
[311859713,1705476661054,-500.0,0.00022738,2]
[311859714,1705476661065,-500.0,0.00022738,2]
[311859715,1705476661075,-500.0,0.00022738,2]
[311859716,1705476661086,-906.08,0.00022738,2]
[311859717,1705476661098,-500.0,0.00022738,2]
[311859718,1705476661108,-975.52,0.00022738,2]
[311859719,1705476661118,-581.8,0.00022738,2]
[311859720,1705476661129,-500.0,0.00022738,2]
[311859721,1705476661140,-650.9,0.00022738,2]
[311859722,1705476661150,-500.0,0.00022738,2]
[311859723,1705476661160,-500.0,0.00022738,2]
[311859724,1705476661171,-500.0,0.00022738,2]
[311859725,1705476661182,-1000.0,0.00022738,2]
[311859726,1705476661193,-500.0,0.00022738,2]
[311859727,1705476661203,-500.0,0.00022738,2]
[311859728,1705476661213,-500.0,0.00022738,2]
[311859729,1705476661223,-500.0,0.00022738,2]
[311859730,1705476661233,-627.23,0.00022738,2]
[311859731,1705476661243,-500.0,0.00022738,2]
[311859732,1705476661253,-500.0,0.00022738,2]
[311859733,1705476661263,-500.0,0.00022738,2]
[311859734,1705476661274,-576.41,0.00022738,2]
[311859735,1705476661284,-167.45983006,0.00022738,2]
[311859736,1705476661295,-500.0,0.00022738,2]
[311859737,1705476661305,-500.0,0.00022738,2]
[311859738,1705476661316,-500.0,0.00022738,2]
[311859739,1705476661327,-500.0,0.00022738,2]
[311859740,1705476661339,-586.98,0.00022738,2]
[311859741,1705476661351,-500.0,0.00022738,2]
[311859742,1705476661363,-708.27,0.00022738,2]
[311859743,1705476661373,-500.0,0.00022738,2]
[311859744,1705476661384,-500.0,0.00022738,2]
[311859745,1705476661401,-860.9,0.00022738,2]
[311859746,1705476661411,-655.27,0.00022738,2]
[311859747,1705476661421,-624.54,0.00022738,2]
[311859748,1705476661432,-500.0,0.00022738,2]
[311859749,1705476661443,-500.0,0.00022738,2]
[311859750,1705476661453,-563.42,0.00022738,2]
[311859751,1705476661463,-500.0,0.00022738,2]
[311859752,1705476661474,-500.0,0.00022738,2]
[311859753,1705476661487,-919.02,0.00022738,2]
[311859754,1705476661498,-500.0,0.00022738,2]
[311859755,1705476661509,-783.35,0.00022738,2]
[311859756,1705476661520,-500.0,0.00022738,2]
[311859757,1705476661531,-531.13,0.00022738,2]
[311859758,1705476661542,-1113.82,0.00022738,2]
[311859759,1705476661555,-574.31909107,0.00022738,2]
[311859760,1705476661566,-500.0,0.00022738,2]
[311859761,1705476661576,-500.0,0.00022738,2]
[311859762,1705476661586,-500.0,0.00022738,2]
[311859763,1705476661597,-500.0,0.00022738,2]
[311859764,1705476661607,-1012.52,0.00022738,2]
[311859765,1705476661617,-500.0,0.00022738,2]
[311859766,1705476661627,-500.0,0.00022738,2]
[311859767,1705476661638,-500.0,0.00022738,2]
[311859768,1705476661650,-500.0,0.00022738,2]
[311859769,1705476661661,-634.19,0.00022738,2]
[311859770,1705476661672,-500.0,0.00022738,2]
[311859771,1705476661683,-500.0,0.00022738,2]
[311859772,1705476661695,-500.0,0.00022738,2]
[311859773,1705476661707,-500.0,0.00022738,2]
[311859774,1705476661721,-500.0,0.00022738,2]
[311859775,1705476661731,-500.0,0.00022738,2]
[311859776,1705476661742,-500.0,0.00022738,2]
[311859777,1705476661754,-548.13,0.00022738,2]
[311859778,1705476661766,-805.41,0.00022738,2]
[311859779,1705476661777,-500.0,0.00022738,2]
[311859780,1705476661788,-568.92909789,0.00022738,2]
[311859781,1705476661799,-555.05,0.00022738,2]
[311859782,1705476661809,-500.0,0.00022738,2]
[311859783,1705476661819,-237.60266056,0.00022738,2]
[311859784,1705476661830,-500.0,0.00022738,2]
[311859785,1705476661841,-500.0,0.00022738,2]
[311859786,1705476661851,-500.0,0.00022738,2]
[311859787,1705476661862,-500.0,0.00022738,2]
[311859788,1705476661872,-519.34707122,0.00022738,2]
[311859789,1705476661882,-531.88,0.00022738,2]
[311859790,1705476661893,-500.0,0.00022738,2]
[311859791,1705476661903,-500.0,0.00022738,2]
[311859792,1705476661914,-805.22,0.00022738,2]
[311859793,1705476661925,-436.41154468,0.00022738,2]
[311859794,1705476661936,-702.82,0.00022738,2]
[311859795,1705476661946,-500.0,0.00022738,2]
[311859796,1705476661966,-516.3554012,0.00022738,2]
[311859797,1705476661982,-500.0,0.00022738,2]
[311859798,1705476661997,-500.0,0.00022738,2]
[311859799,1705476662014,-500.0,0.00022738,2]
[311859800,1705476662030,-500.0,0.00022738,2]
[311859801,1705476662045,-719.85,0.00022738,2]
[311859802,1705476662060,-500.0,0.00022738,2]
[311859803,1705476662077,-500.0,0.00022738,2]
[311859804,1705476662093,-500.0,0.00022738,2]
[311859805,1705476662107,-631.43,0.00022738,2]
[311859806,1705476662124,-500.0,0.00022738,2]
[311859807,1705476662141,-500.0,0.00022738,2]
[311859808,1705476662156,-763.12,0.00022738,2]
[311859809,1705476662172,-500.0,0.00022738,2]
[311859810,1705476662191,-500.0,0.00022738,2]
[311859811,1705476662207,-500.0,0.00022738,2]
[311859812,1705476662219,-500.0,0.00022738,2]
[311859813,1705476662234,-500.0,0.00022738,2]
[311859814,1705476662249,-500.0,0.00022738,2]
[311859815,1705476662266,-500.0,0.00022738,2]
[311859816,1705476662278,-500.0,0.00022738,2]
[311859817,1705476662293,-500.0,0.00022738,2]
[311859818,1705476662308,-500.0,0.00022738,2]
[311859819,1705476662321,-500.0,0.00022738,2]
[311859820,1705476662335,-859.33,0.00022738,2]
[311859821,1705476662349,-500.0,0.00022738,2]
[311859822,1705476662364,-500.0,0.00022738,2]
[311859823,1705476662379,-613.02,0.00022738,2]
[311859824,1705476662396,-500.0,0.00022738,2]
[311859825,1705476662410,-644.26608813,0.00022738,2]
[311859826,1705476662425,-737.74,0.00022738,2]
[311859827,1705476662441,-778.55,0.00022738,2]
[311859828,1705476662455,-777.26,0.00022738,2]
[311859829,1705476662468,-529.27,0.00022738,2]
[311859830,1705476662483,-500.0,0.00022738,2]
[311859831,1705476662498,-639.14,0.00022738,2]
[311859832,1705476662512,-500.0,0.00022738,2]
[311859833,1705476662527,-500.0,0.00022738,2]
[311859834,1705476662541,-500.0,0.00022738,2]
[311859835,1705476662557,-500.0,0.00022738,2]
[311859836,1705476662572,-500.0,0.00022738,2]
[311859837,1705476662587,-500.0,0.00022738,2]
[311859838,1705476662601,-500.0,0.00022738,2]
[311859839,1705476662615,-500.0,0.00022738,2]
[311859840,1705476662631,-506.21250597,0.00022738,2]
[311859841,1705476662644,-500.0,0.00022738,2]
[311859842,1705476662658,-500.0,0.00022738,2]
[311859843,1705476662673,-529.72,0.00022738,2]
[311859844,1705476662687,-500.0,0.00022738,2]
[311859845,1705476662703,-500.0,0.00022738,2]
[311859846,1705476662724,-500.0,0.00022738,2]
[311859847,1705476662747,-581.21,0.00022738,2]
[311859848,1705476662771,-500.0,0.00022738,2]
[311859849,1705476662788,-688.75,0.00022738,2]
[311859850,1705476662803,-547.96,0.00022738,2]
[311859851,1705476662826,-500.0,0.00022738,2]
[311859852,1705476662840,-500.0,0.00022738,2]
[311859853,1705476662854,-500.0,0.00022738,2]
[311859854,1705476662867,-500.0,0.00022738,2]
[311859855,1705476662882,-500.0,0.00022738,2]
[311859856,1705476662896,-694.09,0.00022738,2]
[311859857,1705476662910,-673.83,0.00022738,2]
[311859858,1705476662924,-440.96184799,0.00022738,2]
[311859859,1705476662939,-500.0,0.00022738,2]
[311859860,1705476662953,-500.0,0.00022738,2]
[311859861,1705476662968,-500.0,0.00022738,2]
[311859862,1705476662982,-500.0,0.00022738,2]
[311859863,1705476662998,-639.60267008,0.00022738,2]
[311859864,1705476663013,-828.88,0.00022738,2]
[311859865,1705476663027,-650.33,0.00022738,2]
[311859866,1705476663041,-385.46046372,0.00022738,2]
[311859867,1705476663056,-742.88,0.00022738,2]
[311859868,1705476663070,-642.23,0.00022738,2]
[311859869,1705476663085,-500.0,0.00022738,2]
[311859870,1705476663100,-500.0,0.00022738,2]
[311859871,1705476663113,-500.0,0.00022738,2]
[311859872,1705476663128,-239.59502197,0.00022738,2]
[311859873,1705476663143,-500.0,0.00022738,2]
[311859874,1705476663158,-500.0,0.00022738,2]
[311859875,1705476663172,-500.0,0.00022738,2]
[311859876,1705476663186,-500.0,0.00022738,2]
[311859877,1705476663200,-500.0,0.00022738,2]
[311859878,1705476663215,-500.0,0.00022738,2]
[311859879,1705476663229,-500.0,0.00022738,2]
[311859880,1705476663244,-500.0,0.00022738,2]
[311859881,1705476663258,-500.0,0.00022738,2]
[311859882,1705476663273,-1027.67,0.00022738,2]
[311859883,1705476663287,-500.0,0.00022738,2]
[311859884,1705476663302,-500.0,0.00022738,2]
[311859885,1705476663316,-500.0,0.00022738,2]
[311859886,1705476663331,-500.0,0.00022738,2]
[311859887,1705476663345,-500.0,0.00022738,2]
[311859888,1705476663359,-500.0,0.00022738,2]
[311859889,1705476663375,-500.0,0.00022738,2]
[311859890,1705476663391,-500.0,0.00022738,2]
[311859891,1705476663406,-500.0,0.00022738,2]
[311859892,1705476663421,-500.0,0.00022738,2]
[311859893,1705476663436,-689.28,0.00022738,2]
[311859894,1705476663450,-500.0,0.00022738,2]
[311859895,1705476663467,-500.0,0.00022738,2]
[311859896,1705476663483,-500.0,0.00022738,2]
[311859897,1705476663498,-500.0,0.00022738,2]
[311859898,1705476663513,-500.0,0.00022738,2]
[311859900,1705476663529,-505.61285147,0.00022738,2]
[311859901,1705476663544,-614.53,0.00022738,2]
[311859902,1705476663558,-500.0,0.00022738,2]
[311859903,1705476663573,-500.0,0.00022738,2]
[311859904,1705476663587,-500.0,0.00022738,2]
[311859905,1705476663602,-500.0,0.00022738,2]
[311859906,1705476663616,-500.0,0.00022738,2]
[311859907,1705476663631,-500.0,0.00022738,2]
[311859908,1705476663645,-500.0,0.00022738,2]
[311859909,1705476663659,-954.37,0.00022738,2]
[311859910,1705476663672,-500.0,0.00022738,2]
[311859911,1705476663685,-500.0,0.00022738,2]
[311859912,1705476663699,-500.0,0.00022738,2]
[311859913,1705476663712,-822.41,0.00022738,2]
[311859914,1705476663725,-500.0,0.00022738,2]
[311859915,1705476663739,-500.0,0.00022738,2]
[311859916,1705476663754,-505.95540026,0.00022738,2]
[311859917,1705476663769,-500.0,0.00022738,2]
[311859918,1705476663784,-500.0,0.00022738,2]
[311859919,1705476663797,-500.0,0.00022738,2]
[311859920,1705476663810,-4651.03,0.00022738,2]
[311859921,1705476663824,-500.0,0.00022738,2]
[311859922,1705476663838,-500.0,0.00022738,2]
[311859923,1705476663852,-1552.7,0.00022738,2]
[311859924,1705476663866,-500.0,0.00022738,2]
[311859925,1705476663879,-500.0,0.00022738,2]
[311859926,1705476663892,-512.29477281,0.00022738,2]
[311859927,1705476663907,-500.0,0.00022738,2]
[311859928,1705476663921,-500.0,0.00022738,2]
[311859929,1705476663934,-829.05,0.00022738,2]
[311859930,1705476663947,-324.26034393,0.00022738,2]
[311859931,1705476663961,-811.11,0.00022738,2]
[311859932,1705476663974,-500.0,0.00022738,2]
[311859933,1705476663987,-500.0,0.00022738,2]
[311859934,1705476664000,-1128.82,0.00022738,2]
[311859935,1705476664013,-500.0,0.00022738,2]
[311859936,1705476664026,-3139.34,0.00022738,2]
[311859937,1705476664039,-500.0,0.00022738,2]
[311859938,1705476664052,-3499.89,0.00022738,2]
[311859939,1705476664064,-500.0,0.00022738,2]
[311859940,1705476664076,-500.0,0.00022738,2]
[311859941,1705476664089,-500.0,0.00022738,2]
[311859942,1705476664103,-500.0,0.00022738,2]
[311859943,1705476664115,-500.0,0.00022738,2]
[311859944,1705476664129,-500.0,0.00022738,2]
[311859945,1705476664143,-599.65,0.00022738,2]
[311859946,1705476664156,-500.0,0.00022738,2]
[311859947,1705476664169,-505.11,0.00022738,2]
[311859948,1705476664183,-12052.06,0.00022738,2]
[311859949,1705476664197,-574.09358276,0.00022738,2]
[311859950,1705476664212,-18014.44,0.00022738,2]
[311859951,1705476664225,-500.0,0.00022738,2]
[311859952,1705476664239,-500.0,0.00022738,2]
[311859953,1705476664253,-500.0,0.00022738,2]
[311859954,1705476664266,-500.0,0.00022738,2]
[311859955,1705476664279,-778.19,0.00022738,2]
[311859956,1705476664292,-500.0,0.00022738,2]
[311859957,1705476664306,-500.0,0.00022738,2]
[311859958,1705476664319,-500.0,0.00022738,2]
[311859959,1705476664332,-500.0,0.00022738,2]
[311859960,1705476664346,-2864.71,0.00022738,2]
[311859961,1705476664360,-1076.87,0.00022738,2]
[311859962,1705476664373,-500.0,0.00022738,2]
[311859963,1705476664388,-500.0,0.00022738,2]
[311859964,1705476664403,-500.0,0.00022738,2]
[311859965,1705476664416,-819.56,0.00022738,2]
[311859966,1705476664428,-500.0,0.00022738,2]
[311859967,1705476664441,-500.0,0.00022738,2]
[311859968,1705476664454,-3790.64,0.00022738,2]
[311859969,1705476664467,-945.27,0.00022738,2]
[311859970,1705476664480,-7628.74,0.00022738,2]
[311859971,1705476664493,-1034.03,0.00022738,2]
[311859972,1705476664505,-500.0,0.00022738,2]
[311859973,1705476664519,-5122.21,0.00022738,2]
[311859974,1705476664531,-2624.09,0.00022738,2]
[311859975,1705476664545,-500.0,0.00022738,2]
[311859976,1705476664560,-500.0,0.00022738,2]
[311859977,1705476664574,-2308.66,0.00022738,2]
[311859978,1705476664585,-2333.84,0.00022738,2]
[311859979,1705476664595,-941.51,0.00022738,2]
[311859980,1705476664604,-556.7,0.00022738,2]
[311859981,1705476664613,-500.0,0.00022738,2]
[311859982,1705476664622,-1350.94,0.00022738,2]
[311859983,1705476664631,-500.0,0.00022738,2]
[311859984,1705476664640,-500.0,0.00022738,2]
[311859985,1705476664649,-524.75,0.00022738,2]
[311859986,1705476664659,-5806.04,0.00022738,2]
[311859987,1705476664668,-569.61,0.00022738,2]
[311859988,1705476664677,-247.14296343,0.00022738,2]
[311859989,1705476664687,-843.26,0.00022738,2]
[311859990,1705476664696,-500.0,0.00022738,2]
[311859991,1705476664706,-4815.06,0.00022738,2]
[311859992,1705476665213,-521.67,0.00022738,2]
[311859993,1705476665240,-500.0,0.00022738,2]
[311859994,1705476665277,-500.0,0.00022738,2]
[311859995,1705476665316,-3247.29,0.00022738,2]
[311859996,1705476665326,-500.0,0.00022738,2]
[311859997,1705476665336,-269.32272632,0.00022738,2]
[311859998,1705476665346,-760.98,0.00022738,2]
[311859999,1705476665357,-9480.4,0.00022738,2]
[311860000,1705476665367,-500.0,0.00022738,2]
[311860001,1705476665380,-684.79,0.00022738,2]
[311860002,1705476665391,-4527.36,0.00022738,5]
[311860003,1705476665401,-500.0,0.00022738,2]
[311860004,1705476665410,-500.0,0.00022738,2]
[311860005,1705476665420,-500.0,0.00022738,2]
[311860006,1705476665430,-500.0,0.00022738,2]
[311860007,1705476665440,-500.0,0.00022738,2]
[311860008,1705476665449,-500.0,0.00022738,2]
[311860009,1705476665461,-512.16,0.00022738,2]
[311860010,1705476665470,-500.0,0.00022738,2]
[311860011,1705476665479,-500.0,0.00022738,2]
[311860012,1705476665489,-500.0,0.00022738,2]
[311860013,1705476665499,-5872.34,0.00022738,2]
[311860014,1705476665508,-2431.68,0.00022738,2]
[311860015,1705476665517,-500.0,0.00022738,2]
[311860016,1705476665527,-500.0,0.00022738,2]
[311860017,1705476665537,-739.91,0.00022738,2]
[311860018,1705476665547,-500.0,0.00022738,2]
[311860019,1705476665557,-500.0,0.00022738,2]
[311860020,1705476665567,-555.72,0.00022738,2]
[311860021,1705476665576,-742.68,0.00022738,2]
[311860022,1705476665586,-500.0,0.00022738,2]
[311860023,1705476665596,-500.0,0.00022738,2]
[311860024,1705476665605,-511.12074454,0.00022738,2]
[311860025,1705476665615,-1002.05,0.00022738,2]
[311860026,1705476665626,-372.3807972,0.00022738,2]
[311860027,1705476665635,-500.0,0.00022738,2]
[311860028,1705476665644,-500.0,0.00022738,2]
[311860029,1705476665653,-672.14,0.00022738,2]
[311860030,1705476665662,-500.0,0.00022738,2]
[311860031,1705476665672,-500.0,0.00022738,2]
[311860032,1705476665681,-370.29,0.00022738,2]
[311860033,1705476665691,-2774.18,0.00022738,2]
[311860034,1705476665701,-151.0,0.00022739,7]
[311860035,1705476665711,-151.0,0.00022739,7]
[311860036,1705476665721,-1434.82,0.00022739,2]
[311860037,1705476665731,-1611.84,0.00022739,2]
[311860038,1705476665740,-1366.67,0.00022739,2]
[311860039,1705476665749,-653.08,0.00022739,2]
[311860040,1705476665759,-632.88,0.00022739,2]
[311860041,1705476665769,-619.51,0.00022739,2]
[311860042,1705476665779,-500.0,0.00022739,2]
[311860043,1705476665789,-573.44,0.00022739,2]
[311860044,1705476665799,-1179.97,0.00022739,2]
[311860045,1705476665808,-340.40600212,0.00022739,2]
[311860046,1705476665818,-500.0,0.00022739,2]
[311860047,1705476665828,-506.94,0.00022739,2]
[311860048,1705476665837,-500.0,0.00022739,2]
[311860049,1705476665847,-544.36,0.00022739,2]
[311860050,1705476665857,-983.54,0.00022739,2]
[311860051,1705476665869,-1119.96,0.00022739,2]
[311860052,1705476665879,-1120.89,0.00022739,2]
[311860053,1705476665889,-833.89,0.00022739,2]
[311860054,1705476665899,-1194.46,0.00022739,2]
[311860055,1705476665909,-1392.34,0.00022739,2]
[311860056,1705476665919,-847.87,0.00022739,2]
[311860057,1705476665929,-1529.23,0.00022739,2]
[311860058,1705476665938,-500.0,0.00022739,2]
[311860059,1705476665950,-1493.13,0.00022739,2]
[311860060,1705476665960,-1181.68,0.00022739,2]
[311860061,1705476665971,-1368.82,0.00022739,2]
[311860062,1705476665981,-1036.23,0.00022739,2]
[311860063,1705476665991,-1584.15,0.00022739,2]
[311860064,1705476666001,-972.9,0.00022739,2]
[311860065,1705476666011,-554.38,0.00022739,2]
[311860066,1705476666020,-500.0,0.00022739,2]
[311860067,1705476666030,-1666.38,0.00022739,2]
[311860068,1705476666041,-1024.95,0.00022739,2]
[311860069,1705476666051,-830.41,0.00022739,2]
[311860070,1705476666061,-500.0,0.00022739,2]
[311860071,1705476666072,-1117.15,0.00022739,2]
[311860072,1705476666082,-530.03,0.00022739,2]
[311860073,1705476666092,-1307.76,0.00022739,2]
[311860074,1705476666102,-1289.65,0.00022739,2]
[311860075,1705476666112,-500.0,0.00022739,2]
[311860076,1705476666123,-500.0,0.00022739,2]
[311860077,1705476666133,-1046.46,0.00022739,2]
[311860078,1705476666142,-1248.85,0.00022739,2]
[311860079,1705476666152,-1637.93,0.00022739,2]
[311860080,1705476666162,-1066.89,0.00022739,2]
[311860081,1705476666172,-1459.88,0.00022739,2]
[311860082,1705476666182,-631.07305566,0.00022739,2]
[311860083,1705476666191,-753.58,0.00022739,2]
[311860084,1705476666202,-1256.18,0.00022739,2]
[311860085,1705476666211,-500.0,0.00022739,2]
[311860086,1705476666220,-598.95,0.00022739,2]
[311860087,1705476666230,-1345.89,0.00022739,2]
[311860088,1705476666240,-561.88,0.00022739,2]
[311860089,1705476666250,-616.63,0.00022739,2]
[311860090,1705476666259,-1089.66,0.00022739,2]
[311860091,1705476666270,-500.0,0.00022739,2]
[311860092,1705476666279,-500.0,0.00022739,2]
[311860093,1705476666290,-1259.68,0.00022739,7]
[311860094,1705476666299,-924.37,0.00022739,2]
[311860095,1705476666309,-1723.56,0.00022739,2]
[311860096,1705476666321,-629.54,0.00022739,2]
[311860097,1705476666331,-500.0,0.00022739,2]
[311860098,1705476666341,-1338.16,0.00022739,2]
[311860099,1705476666351,-1212.93,0.00022739,2]
[311860100,1705476666361,-813.57,0.00022739,2]
[311860101,1705476666371,-1386.78,0.00022739,2]
[311860102,1705476666381,-1840.63,0.00022739,2]
[311860103,1705476666392,-500.0,0.00022739,2]
[311860104,1705476666402,-793.74,0.00022739,2]
[311860105,1705476666411,-1325.41,0.00022739,2]
[311860106,1705476666420,-500.0,0.00022739,2]
[311860107,1705476666430,-1108.93,0.00022739,2]
[311860108,1705476666440,-1624.2,0.00022739,2]
[311860109,1705476666450,-4556.22,0.00022739,2]
[311860110,1705476666460,-500.0,0.00022739,2]
[311860111,1705476666472,-500.0,0.00022739,2]
[311860112,1705476666482,-500.0,0.00022739,2]
[311860113,1705476666491,-1833.09,0.00022739,2]
[311860114,1705476666501,-2110.2,0.00022739,2]
[311860115,1705476666510,-1719.95,0.00022739,2]
[311860116,1705476666520,-1348.57,0.00022739,2]
[311860117,1705476666529,-1358.36,0.00022739,2]
[311860118,1705476666539,-507.75464987,0.00022739,2]
[311860119,1705476666548,-500.0,0.00022739,2]
[311860120,1705476666558,-1356.42,0.00022739,2]
[311860121,1705476666567,-443.49288994,0.00022739,2]
[311860122,1705476666577,-3068.84,0.00022739,2]
[311860123,1705476666587,-1335.4,0.00022739,2]
[311860124,1705476666596,-500.0,0.00022739,2]
[311860125,1705476666605,-1349.22,0.00022739,2]
[311860126,1705476666614,-500.0,0.00022739,2]
[311860127,1705476666623,-1910.78,0.00022739,2]
[311860128,1705476666633,-762.08,0.00022739,2]
[311860129,1705476666642,-910.9,0.00022739,2]
[311860130,1705476666651,-1630.08,0.00022739,2]
[311860131,1705476666661,-500.0,0.00022739,2]
[311860132,1705476666670,-1795.97,0.00022739,2]
[311860133,1705476666680,-500.0,0.00022739,2]
[311860134,1705476666689,-3758.51,0.00022739,2]
[311860135,1705476666699,-1990.88,0.00022739,2]
[311860136,1705476666709,-1293.57,0.00022739,2]
[311860137,1705476666718,-1347.86,0.00022739,2]
[311860138,1705476666727,-4466.86,0.00022739,2]
[311860139,1705476666736,-2806.33,0.00022739,2]
[311860140,1705476666746,-500.0,0.00022739,2]
[311860141,1705476666756,-4702.16,0.00022739,5]
[311860142,1705476666765,-975.21,0.00022739,2]
[311860143,1705476666775,-7857.97,0.00022739,2]
[311860144,1705476666784,-661.36,0.00022739,2]
[311860145,1705476666794,-500.0,0.00022739,2]
[311860146,1705476666803,-3379.77,0.00022739,2]
[311860147,1705476666812,-745.19,0.00022739,2]
[311860148,1705476666822,-6444.76,0.00022739,2]
[311860149,1705476666831,-1124.19,0.00022739,2]
[311860150,1705476666841,-3704.26,0.00022739,2]